fUST/lending_fUST_20251205
["ID","MTS","AMOUNT","RATE_DAILY","PERIOD"]
[396360350,1764942636496,-49.3762662,0.00012996,2]
[396360370,1764942638086,-450.6237338,0.00012996,2]
[396360372,1764942638095,-500.0,0.00012996,2]
[396360373,1764942638104,-500.0,0.00012996,2]
[396360375,1764942638113,-500.0,0.00012996,2]
[396360377,1764942638123,-500.0,0.00012996,2]
[396360379,1764942638132,-500.0,0.00012996,2]
[396360381,1764942638141,-500.0,0.00012996,2]
[396360383,1764942638151,-500.0,0.00012996,2]
[396360385,1764942638160,-500.0,0.00012996,2]
[396360387,1764942638170,-500.0,0.00012996,2]
[396360389,1764942638179,-500.0,0.00012996,2]
[396360391,1764942638189,-500.0,0.00012996,2]
[396360394,1764942638199,-500.0,0.00012996,2]
[396360395,1764942638208,-500.0,0.00012996,2]
[396360397,1764942638218,-500.0,0.00012996,2]
[396360399,1764942638228,-500.0,0.00012996,2]
[396360401,1764942638241,-500.0,0.00012996,2]
[396360403,1764942638250,-135.88994082,0.00012996,2]
[396360408,1764942638290,-281.04,0.00012996,2]
[396360413,1764942638306,-83.07005918,0.00012996,2]
[396360416,1764942638318,-500.0,0.00012996,2]
[396360418,1764942638331,-500.0,0.00012996,2]
[396360420,1764942638340,-104.3166385,0.00012996,2]
[396360422,1764942638351,-395.6833615,0.00012996,2]
[396360424,1764942638361,-306.30678405,0.00012996,2]
[396360787,1764942643093,-193.69321595,0.00012996,2]
[396360789,1764942643104,-338.80678405,0.00012996,2]
[396360791,1764942643116,-161.19321595,0.00012996,2]
[396360793,1764942643125,-571.58824822,0.00012996,2]
[396360795,1764942643135,-500.0,0.00012996,2]
[396360797,1764942643144,-396.28091348,0.00012996,2]
[396360804,1764942643196,-115.68280652,0.00012996,2]
[396360806,1764942643205,-189.62711057,0.00012996,2]
[396360809,1764942643224,-310.37288943,0.00012996,2]
[396360811,1764942643235,-500.0,0.00012996,2]
[396360813,1764942643249,-500.0,0.00012996,2]
[396360815,1764942643259,-500.0,0.00012996,2]
[396360817,1764942643268,-500.0,0.00012996,2]
[396360819,1764942643279,-500.0,0.00012996,2]
[396360821,1764942643289,-500.0,0.00012996,2]
[396360823,1764942643298,-500.0,0.00012996,2]
[396360825,1764942643308,-500.0,0.00012996,2]
[396360827,1764942643317,-500.0,0.00012996,2]
[396360829,1764942643327,-500.0,0.00012996,2]
[396360831,1764942643337,-500.0,0.00012996,2]
[396360833,1764942643347,-279.10708,0.00012996,2]
[396360835,1764942643356,-222.61250968,0.00013,2]
[396360837,1764942643365,-691.95886668,0.00013011,2]
[396360839,1764942643375,-1093.21589915,0.00013161,2]
[396360841,1764942643383,-637.16534064,0.00013161,2]
[396360844,1764942643393,-2031.05076985,0.0001317,2]
[396360847,1764942643403,-500.0,0.00013171,2]
[396360850,1764942643411,-351.7407484,0.00013171,2]
[396360852,1764942643421,-500.0,0.00013171,2]
[396360854,1764942643431,-304.17538746,0.00013171,2]
[396360856,1764942643440,-500.0,0.00013171,2]
[396360858,1764942643450,-500.0,0.00013171,2]
[396360860,1764942643461,-500.0,0.00013171,2]
[396360862,1764942643470,-500.0,0.00013171,2]
[396360864,1764942643479,-500.0,0.00013171,2]
[396360866,1764942643488,-500.0,0.00013171,2]
[396360868,1764942643498,-450.0,0.00013171,2]
[396360870,1764942643507,-74533.22603264,0.00013173,2]
[396360881,1764942643599,-40991.65176701,0.00013173,2]
[396360886,1764942643642,-1657.4682726,0.00013173,2]
[396360890,1764942643661,-4690.08098511,0.00013173,2]
[396361192,1764942646717,-8767.27959657,0.00013173,2]
[396361206,1764942646855,-271.52,0.00013173,2]
[396361208,1764942646874,-1441.1821735,0.00013173,2]
[396362372,1764942713087,150.0,7.569e-05,2]
[396362373,1764942719481,150.0,7.93e-05,2]
[396362374,1764942719824,150.0,8.29e-05,2]
[396362375,1764942720224,150.0,8.65e-05,2]
[396362376,1764942720977,150.0,9.011e-05,2]
[396362377,1764942721153,150.0,9.371e-05,2]
[396362378,1764942721926,150.0,9.732e-05,2]
[396362379,1764942722094,154.93,0.00010092,2]
[396362380,1764942722305,174.29,0.00010453,2]
[396362381,1764942757608,300.0,0.00013744,120]
[396362405,1764943445482,532.12,1e-05,2]
[396362406,1764943445778,532.12,1.2e-05,2]
[396362407,1764943446114,532.12,1.4e-05,2]
[396362408,1764943446382,532.12,1.6e-05,2]
[396362409,1764943446823,532.12,1.8e-05,2]
[396362410,1764943447096,532.12,2e-05,2]
[396362411,1764943447255,190.98507813,0.00011163,2]
[396362412,1764943447474,532.12,2.2e-05,2]
[396362413,1764943447851,532.12,2.4e-05,2]
[396362414,1764943448139,532.12,2.6e-05,2]
[396362415,1764943448433,532.12,2.8e-05,2]
[396362416,1764943448737,532.12,2.9e-05,2]
[396362417,1764943449075,532.12,3.1e-05,2]
[396362418,1764943449371,532.12,3.3e-05,2]
[396362419,1764943450392,532.12,3.5e-05,2]
[396362420,1764943450577,532.12,3.7e-05,2]
[396362421,1764943451043,532.12,3.9e-05,2]
[396362422,1764943451566,532.12,4.1e-05,2]
[396362423,1764943452714,532.12,4.3e-05,2]
[396362424,1764943452799,532.12,4.5e-05,2]
[396362425,1764943453162,532.12,4.7e-05,2]
[396362426,1764943453471,532.12,4.9e-05,2]
[396362427,1764943453809,532.12,5.1e-05,2]
[396362428,1764943454097,532.12,5.3e-05,2]
[396362429,1764943454408,532.12,5.5e-05,2]
[396362430,1764943455191,532.12,5.7e-05,2]
[396362431,1764943455481,532.12,5.9e-05,2]
[396362432,1764943455790,532.12,6.1e-05,2]
[396362433,1764943456150,532.12,6.3e-05,2]
[396362434,1764943456447,532.12,6.5e-05,2]
[396362435,1764943456778,532.12,6.7e-05,2]
[396362436,1764943457784,532.12,6.8e-05,2]
[396362437,1764943458831,532.12,7e-05,2]
[396362438,1764943459235,532.12,7.2e-05,2]
[396362439,1764943459589,532.12,7.4e-05,2]
[396362440,1764943459923,532.12,7.6e-05,2]
[396362441,1764943460962,421.85,7.8e-05,2]
[396362442,1764943460989,110.27,7.8e-05,2]
[396362443,1764943461092,532.12,8e-05,2]
[396362444,1764943461964,532.12,8.2e-05,2]
[396362445,1764943462318,532.12,8.4e-05,2]
[396362446,1764943462662,532.12,8.6e-05,2]
[396362447,1764943463828,532.12,8.8e-05,2]
[396362448,1764943464168,532.12,9e-05,2]
[396362449,1764943464476,532.12,9.2e-05,2]
[396362450,1764943464933,532.12,9.4e-05,2]
[396362451,1764943465374,532.12,9.6e-05,2]
[396362452,1764943465778,532.12,9.8e-05,2]
[396362453,1764943466068,532.12,0.0001,2]
[396362454,1764943467129,532.12,0.000102,2]
[396362455,1764943467443,532.12,0.000104,2]
[396362456,1764943468978,531.88,1e-05,2]
[396362457,1764943471591,157.09,0.0001,2]
[396362458,1764943472521,157.09,0.0001,2]
[396362459,1764943473727,157.09,0.0001,2]
[396362462,1764943477837,209.73439016,0.00011255,2]
[396362464,1764943497280,255.95222171,0.00013102,7]
[396362486,1764943647658,5000.0,0.00011255,2]
[396362487,1764943684250,194.4,0.00010501,2]
[396362488,1764943684521,194.39,0.00010501,2]
[396362489,1764943745844,1000.0,0.00013101,3]
[396362490,1764943746529,1000.0,0.00011567,3]
[396362549,1764943832295,-500.0,0.00011781,2]
[396362550,1764943832311,-4500.0,0.00011781,2]
[396362552,1764943832322,-246.0,0.00011781,2]
[396362554,1764943832333,-207.45024292,0.000119,2]
[396362555,1764943832344,-361.27433323,0.00011979,2]
[396362556,1764943832355,-649.64350602,0.00011979,2]
[396362557,1764943832367,-162.15737467,0.00011979,2]
[396362558,1764943832378,-291.59139113,0.00011979,2]
[396362559,1764943832388,-476.03206261,0.00012491,2]
[396362560,1764943832401,-213.6661878,0.00012491,2]
[396362561,1764943832413,-300.0,0.00012921,2]
[396362562,1764943832424,-3755.45395662,0.00012927,2]
[396362563,1764943832435,-539.8456542,0.00012973,2]
[396362564,1764943832447,-500.0,0.00013014,2]
[396362565,1764943832459,-500.0,0.00013014,2]
[396362566,1764943832469,-500.0,0.00013014,2]
[396362567,1764943832481,-500.0,0.00013014,2]
[396362568,1764943832492,-500.0,0.00013014,2]
[396362569,1764943832502,-500.0,0.00013014,2]
[396362570,1764943832514,-468.64802791,0.00013014,2]
[396362571,1764943832525,-178.06316528,0.00013014,2]
[396362572,1764943832536,-1059.72070157,0.00013056,2]
[396362573,1764943832549,-2312.83697232,0.00013064,2]
[396362574,1764943832561,-246.21852388,0.0001307,2]
[396362575,1764943832572,-500.0,0.0001307,2]
[396362576,1764943832582,-500.0,0.0001307,2]
[396362577,1764943832593,-500.0,0.0001307,2]
[396362578,1764943832604,-500.0,0.0001307,2]
[396362579,1764943832615,-500.0,0.0001307,2]
[396362580,1764943832626,-500.0,0.0001307,2]
[396362581,1764943832637,-645.78193191,0.0001307,2]
[396362582,1764943832648,-31740.12023411,0.00013073,2]
[396362583,1764943832662,-154438.32772875,0.00013073,2]
[396362584,1764943832675,-421.34932773,0.00013073,2]
[396362614,1764943838299,-616.52065901,0.00012927,2]
[396362616,1764943838311,-578.65067227,0.00012927,2]
[396362621,1764943838356,-3563.90632822,0.00012927,2]
[396362622,1764943838415,-500.0,0.00012927,2]
[396362623,1764943838427,-1513.73603526,0.00012927,2]
[396362624,1764943838438,-2012.70208524,0.00012927,2]
[396362709,1764943840828,-3010.58040532,0.00012927,2]
[396362711,1764943840839,-970.77305709,0.00012927,2]
[396362714,1764943840854,-4411.04309886,0.00012927,2]
[396363024,1764943843900,-1509.41048201,0.00012927,2]
[396363027,1764943843913,-8758.22371993,0.00012927,2]
[396363293,1764943846422,-22554.45345679,0.00012927,2]
[396363295,1764943846432,-2031.05076985,0.0001307,2]
[396363297,1764943846442,-1093.21589915,0.00013071,2]
[396363299,1764943846451,-277.87519123,0.00013072,2]
[396363301,1764943846460,-500.0,0.00013072,2]
[396363303,1764943846470,-393.29996857,0.00013072,2]
[396363305,1764943846479,-500.0,0.00013072,2]
[396363307,1764943846488,-500.0,0.00013072,2]
[396363309,1764943846497,-500.0,0.00013072,2]
[396363311,1764943846506,-500.0,0.00013072,2]
[396363313,1764943846516,-500.0,0.00013072,2]
[396363315,1764943846526,-500.0,0.00013072,2]
[396363316,1764943846535,-186.45146281,0.00013072,2]
[396363317,1764943846544,-500.0,0.00013072,2]
[396363318,1764943846553,-500.0,0.00013072,2]
[396363319,1764943846563,-500.0,0.00013072,2]
[396363320,1764943846572,-500.0,0.00013072,2]
[396363321,1764943846582,-500.0,0.00013072,2]
[396363322,1764943846591,-500.0,0.00013072,2]
[396363323,1764943846600,-177.39677528,0.00013072,2]
[396363324,1764943846610,-500.0,0.00013072,2]
[396363325,1764943846620,-500.0,0.00013072,2]
[396363326,1764943846629,-500.0,0.00013072,2]
[396363327,1764943846639,-500.0,0.00013072,2]
[396363328,1764943846648,-585.0,0.00013072,2]
[396363329,1764943846658,-55114.12274069,0.00013073,2]
[396367240,1764943906941,150.0,7.592e-05,2]
[396367241,1764943907954,150.0,7.953e-05,2]
[396367242,1764943908381,150.0,8.315e-05,2]
[396367243,1764943908794,150.0,8.676e-05,2]
[396367244,1764943909681,150.0,9.038e-05,2]
[396367245,1764943910515,150.0,9.399e-05,2]
[396367246,1764943977282,150.0,7.595e-05,2]
[396367247,1764943977684,150.0,7.956e-05,2]
[396367256,1764944109755,150.0,7.586e-05,2]
[396367257,1764944110193,150.0,7.947e-05,2]
[396367258,1764944110725,150.0,8.309e-05,2]
[396367259,1764944111603,150.0,8.67e-05,2]
[396367260,1764944112025,150.0,9.031e-05,2]
[396367261,1764944112946,150.0,9.392e-05,2]
[396367280,1764944424617,-151.0,0.00013548,7]
[396367281,1764944424637,-149.0,0.00013548,7]
[396367342,1764944944358,1000.0,0.000131,3]
[396367368,1764945032533,-247.0,0.00011873,2]
[396367369,1764945032544,-318.8214239,0.00011873,2]
[396367370,1764945032554,-573.87856303,0.00011873,2]
[396367371,1764945032568,-1019.20832794,0.00011873,2]
[396367372,1764945032580,-229.40123806,0.00011875,2]
[396367373,1764945032590,-300.0,0.00011877,2]
[396367374,1764945032604,-1200.0,0.00011877,2]
[396367375,1764945032615,-304.67947736,0.00011878,2]
[396367376,1764945032625,-548.42305925,0.00011878,2]
[396367377,1764945032635,-973.99935323,0.00011878,2]
[396367378,1764945032646,-5000.0,0.00011901,2]
[396367379,1764945032656,-50000.0,0.00011901,2]
[396367380,1764945032666,-3052.79063712,0.00012229,2]
[396367381,1764945032676,-155.79370686,0.00012247,2]
[396367382,1764945032686,-252.47508471,0.00012321,2]
[396367383,1764945032696,-630.82186392,0.00012323,2]
[396367384,1764945032708,-500.0,0.00012323,2]
[396367385,1764945032719,-500.0,0.00012323,2]
[396367386,1764945032729,-500.0,0.00012323,2]
[396367387,1764945032739,-500.0,0.00012323,2]
[396367388,1764945032749,-500.0,0.00012323,2]
[396367389,1764945032760,-500.0,0.00012323,2]
[396367390,1764945032770,-500.0,0.00012323,2]
[396367391,1764945032780,-250.0,0.00012323,2]
[396367392,1764945032790,-522.72080107,0.00012323,2]
[396367393,1764945032801,-500.0,0.00012328,2]
[396367394,1764945032811,-297.70478769,0.00012328,2]
[396367395,1764945032821,-500.0,0.00012328,2]
[396367396,1764945032831,-500.0,0.00012328,2]
[396367397,1764945032842,-500.0,0.00012328,2]
[396367398,1764945032852,-500.0,0.00012328,2]
[396367399,1764945032863,-500.0,0.00012328,2]
[396367400,1764945032873,-10656.72,0.00012329,2]
[396367401,1764945032885,-8880.6,0.00012329,2]
[396367402,1764945032896,-7400.5,0.00012329,2]
[396367403,1764945032907,-6167.08,0.00012329,2]
[396367404,1764945032917,-5139.23,0.00012329,2]
[396367405,1764945032929,-4282.69,0.00012329,2]
[396367406,1764945032941,-3568.91,0.00012329,2]
[396367407,1764945032951,-2974.09,0.00012329,2]
[396367408,1764945032963,-2478.41,0.00012329,2]
[396367409,1764945032974,-2065.34,0.00012329,2]
[396367410,1764945032984,-1721.12,0.00012329,2]
[396367411,1764945032995,-1434.27,0.00012329,2]
[396367412,1764945033006,-1195.22,0.00012329,2]
[396367413,1764945033017,-996.02,0.00012329,2]
[396367414,1764945033028,-830.02,0.00012329,2]
[396367415,1764945033039,-691.68,0.00012329,2]
[396367416,1764945033050,-863.690783,0.00012329,2]
[396367417,1764945033060,-863.690783,0.00012329,2]
[396367418,1764945033071,-863.690783,0.00012329,2]
[396367419,1764945033081,-863.690783,0.00012329,2]
[396367420,1764945033092,-151.0,0.00012329,2]
[396367421,1764945033103,-151.0,0.00012329,2]
[396367422,1764945033115,-151.0,0.00012329,2]
[396367423,1764945033126,-500.0,0.00012329,2]
[396367424,1764945033137,-672.20329767,0.00012491,2]
[396367425,1764945033148,-693.98370059,0.00012491,2]
[396367426,1764945033158,-500.0,0.00012603,2]
[396367427,1764945033169,-4088.48536519,0.0001276,2]
[396367428,1764945033181,-447.95112622,0.00012764,2]
[396367429,1764945033196,-200.0,0.00012764,2]
[396367430,1764945033207,-155.0,0.00012764,2]
[396367431,1764945033219,-307.8364998,0.00012764,2]
[396367432,1764945033230,-4828.50812449,0.00012764,2]
[396367433,1764945033241,-250.0,0.00012764,2]
[396367434,1764945033257,-2312.83697232,0.00012764,2]
[396367435,1764945033268,-3052.7906371,0.00012846,2]
[396367436,1764945033279,-151.0,0.00012861,2]
[396367437,1764945033290,-151.0,0.00012861,2]
[396367438,1764945033300,-151.0,0.00012861,2]
[396367439,1764945033311,-693.52043176,0.00012861,2]
[396367440,1764945033322,-500.0,0.00012877,2]
[396367441,1764945033334,-1381.72049521,0.000129,2]
[396367442,1764945033345,-420.0,0.0001304,2]
[396367443,1764945033356,-863.690783,0.00013044,2]
[396367444,1764945033367,-863.690783,0.00013044,2]
[396367445,1764945033377,-863.690783,0.00013044,2]
[396367446,1764945033389,-863.690783,0.00013044,2]
[396367447,1764945033400,-7322.4351722,0.00013049,2]
[396367448,1764945033412,-1000.0,0.00013072,2]
[396367449,1764945033423,-500.0,0.00013151,2]
[396367450,1764945033435,-203.59631802,0.00013156,2]
[396367451,1764945033447,-402.00137515,0.00013158,2]
[396367452,1764945033458,-154.567,0.00013163,2]
[396367453,1764945033472,-1381.72049519,0.00013168,2]
[396367454,1764945033483,-500.34980917,0.00013273,2]
[396367455,1764945033496,-600.49372759,0.00013273,2]
[396367456,1764945033506,-502.96933794,0.00013273,2]
[396367457,1764945033517,-501.10677899,0.00013273,2]
[396367458,1764945033527,-500.0,0.00013273,2]
[396367459,1764945033539,-500.0,0.00013273,2]
[396367460,1764945033550,-500.0,0.00013273,2]
[396367461,1764945033560,-500.0,0.00013273,2]
[396367462,1764945033572,-500.0,0.00013273,2]
[396367463,1764945033586,-500.0,0.00013273,2]
[396367464,1764945033597,-500.0,0.00013273,2]
[396367465,1764945033608,-500.0,0.00013273,2]
[396367466,1764945033619,-500.0,0.00013273,2]
[396367467,1764945033630,-500.0,0.00013273,2]
[396367468,1764945033640,-248.8639878,0.00013294,2]
[396367469,1764945033653,-200.0,0.00013312,2]
[396367470,1764945033663,-2398.4119403,0.00013312,2]
[396367471,1764945033674,-863.690783,0.00013356,2]
[396367472,1764945033684,-863.690783,0.00013356,2]
[396367473,1764945033695,-863.690783,0.00013356,2]
[396367474,1764945033705,-863.690783,0.00013356,2]
[396367475,1764945033717,-151.0,0.00013415,2]
[396367476,1764945033727,-151.0,0.00013415,2]
[396367477,1764945033737,-175.312401,0.00013415,2]
[396367478,1764945033747,-500.0,0.00013425,2]
[396367479,1764945033758,-3052.7906371,0.00013462,2]
[396367480,1764945033768,-1000.0,0.00013547,3]
[396367481,1764945033778,-151.0,0.00013548,7]
[396367482,1764945033788,-500.0,0.00013548,7]
[396367483,1764945033798,-151.0,0.00013548,7]
[396367484,1764945033809,-907.2,0.00013598,2]
[396367485,1764945033819,-300.0,0.00013673,2]
[396367486,1764945033829,-151.87530863,0.00013685,7]
[396367487,1764945033839,-500.0,0.00013685,7]
[396367488,1764945033849,-151.75065285,0.00013685,7]
[396367489,1764945033859,-2728.20702819,0.00013685,2]
[396367490,1764945033870,-500.0,0.00013698,2]
[396367491,1764945033881,-518.83773711,0.00013698,2]
[396367492,1764945033891,-500.0,0.00013698,2]
[396367493,1764945033902,-500.0,0.00013698,2]
[396367494,1764945033914,-512.25115707,0.00013698,2]
[396367495,1764945033923,-500.0,0.00013698,2]
[396367496,1764945033934,-500.0,0.00013698,2]
[396367497,1764945033944,-181.73458348,0.00013698,2]
[396367498,1764945033954,-202.8864917,0.00013699,2]
[396367499,1764945034430,-1000.0,0.00013699,2]
[396367500,1764945034441,-812.241257,0.00013699,2]
[396367501,1764945034450,-151.0,0.00013699,2]
[396367502,1764945034460,-151.0,0.00013699,2]
[396367503,1764945034470,-151.0,0.00013699,2]
[396367504,1764945034480,-1199.68896,0.00013699,2]
[396367505,1764945034489,-1199.68896,0.00013699,2]
[396367506,1764945034499,-1199.68896,0.00013699,2]
[396367507,1764945034508,-1199.68896,0.00013699,2]
[396367508,1764945034518,-1199.68896,0.00013699,2]
[396367509,1764945034527,-1199.68896,0.00013699,2]
[396367510,1764945034539,-1199.68896,0.00013699,2]
[396367511,1764945034548,-1199.68896,0.00013699,2]
[396367512,1764945034557,-500.0,0.00013699,2]
[396367513,1764945034567,-500.0,0.00013699,2]
[396367514,1764945034581,-500.0,0.00013699,2]
[396367515,1764945034591,-500.0,0.00013699,2]
[396367516,1764945034601,-500.0,0.00013699,2]
[396367517,1764945034610,-500.0,0.00013699,2]
[396367518,1764945034620,-382.59704775,0.00013699,2]
[396367519,1764945034629,-500.0,0.00013699,2]
[396367520,1764945034639,-500.0,0.00013699,2]
[396367521,1764945034649,-500.0,0.00013699,2]
[396367522,1764945034660,-500.0,0.00013699,2]
[396367523,1764945034670,-500.0,0.00013699,2]
[396367524,1764945034679,-500.0,0.00013699,2]
[396367525,1764945034689,-500.0,0.00013699,2]
[396367526,1764945034698,-500.0,0.00013699,2]
[396367527,1764945034708,-500.0,0.00013699,2]
[396367528,1764945034723,-500.0,0.00013699,2]
[396367529,1764945034733,-500.0,0.00013699,2]
[396367530,1764945034743,-500.0,0.00013699,2]
[396367531,1764945034754,-500.0,0.00013699,2]
[396367532,1764945034764,-500.0,0.00013699,2]
[396367533,1764945034775,-500.0,0.00013699,2]
[396367534,1764945034785,-500.0,0.00013699,2]
[396367535,1764945034795,-500.0,0.00013699,2]
[396367536,1764945034808,-500.0,0.00013699,2]
[396367537,1764945034819,-500.0,0.00013699,2]
[396367538,1764945034830,-500.0,0.00013699,2]
[396367539,1764945034846,-500.0,0.00013699,2]
[396367540,1764945034856,-500.0,0.00013699,2]
[396367541,1764945034867,-500.0,0.00013699,2]
[396367542,1764945034877,-500.0,0.00013699,2]
[396367543,1764945034887,-500.70215363,0.00013699,2]
[396367544,1764945034898,-623.18332771,0.00013699,2]
[396367545,1764945034909,-500.0,0.00013699,2]
[396367546,1764945034919,-500.0,0.00013699,2]
[396367547,1764945034930,-275.91390056,0.00013699,2]
[396367548,1764945034940,-500.0,0.00013699,2]
[396367549,1764945034950,-500.0,0.00013699,2]
[396367550,1764945034960,-500.0,0.00013699,2]
[396367551,1764945034973,-500.0,0.00013699,2]
[396367552,1764945034983,-500.0,0.00013699,2]
[396367553,1764945034992,-500.0,0.00013699,2]
[396367554,1764945035002,-500.0,0.00013699,2]
[396367555,1764945035011,-500.0,0.00013699,2]
[396367556,1764945035021,-500.0,0.00013699,2]
[396367557,1764945035030,-500.0,0.00013699,2]
[396367558,1764945035040,-500.0,0.00013699,2]
[396367559,1764945035050,-500.0,0.00013699,2]
[396367560,1764945035059,-500.0,0.00013699,2]
[396367561,1764945035068,-863.690783,0.00013699,2]
[396367562,1764945035078,-863.690783,0.00013699,2]
[396367563,1764945035088,-863.690783,0.00013699,2]
[396367564,1764945035097,-863.690783,0.00013699,2]
[396367565,1764945035107,-863.690783,0.00013699,2]
[396367566,1764945035116,-863.690783,0.00013699,2]
[396367567,1764945035126,-863.690783,0.00013699,2]
[396367568,1764945035136,-863.690778,0.00013699,2]
[396367569,1764945035146,-151.0,0.00013699,2]
[396367570,1764945035156,-151.0,0.00013699,2]
[396367571,1764945035168,-1199.68896,0.00013699,2]
[396367572,1764945035177,-1199.68896,0.00013699,2]
[396367573,1764945035187,-1199.68896,0.00013699,2]
[396367574,1764945035196,-1199.68896,0.00013699,2]
[396367575,1764945035207,-1199.68896,0.00013699,2]
[396367576,1764945035219,-1199.68896,0.00013699,2]
[396367577,1764945035228,-1199.68896,0.00013699,2]
[396367578,1764945035239,-1199.68896,0.00013699,2]
[396367579,1764945035250,-526.217,0.00013699,2]
[396367580,1764945035260,-970.44160215,0.00013783,2]
[396367581,1764945035270,-1000.0,0.00013821,2]
[396367582,1764945035279,-1000.0,0.00013821,2]
[396367583,1764945035289,-1000.0,0.00013821,2]
[396367584,1764945035299,-1000.0,0.00013821,2]
[396367585,1764945035309,-1000.0,0.00013821,2]
[396367586,1764945035319,-1000.0,0.00013821,2]
[396367587,1764945035328,-1000.0,0.00013821,2]
[396367588,1764945035338,-1000.0,0.00013821,2]
[396367589,1764945035348,-1000.0,0.00013821,2]
[396367590,1764945035358,-1199.68896,0.00013821,2]
[396367591,1764945035367,-1199.68896,0.00013821,2]
[396367592,1764945035377,-1199.68896,0.00013821,2]
[396367593,1764945035387,-1199.68896,0.00013821,2]
[396367594,1764945035397,-500.0,0.00013822,7]
[396367595,1764945035407,-2487.15318209,0.0001386,2]
[396367596,1764945035417,-270.69346091,0.00013875,2]
[396367597,1764945035427,-900.0,0.000139,2]
[396367598,1764945035436,-500.0,0.00013959,7]
[396367599,1764945035446,-301.8864018,0.00013973,2]
[396367600,1764945035455,-500.0,0.00013973,2]
[396367601,1764945035466,-151.0,0.00014063,2]
[396367602,1764945035475,-151.0,0.00014063,2]
[396367603,1764945035485,-3052.7906371,0.00014079,2]
[396367604,1764945035494,-500.70083233,0.00014096,7]
[396367605,1764945035504,-1381.72049519,0.00014108,2]
[396367606,1764945035513,-501.45693112,0.000142,2]
[396367607,1764945035523,-600.0,0.00014221,2]
[396367608,1764945035532,-515.80039522,0.00014247,2]
[396367609,1764945035542,-500.63678506,0.00014247,2]
[396367610,1764945035553,-669.9128658,0.00014247,2]
[396367611,1764945035566,-500.95595769,0.00014247,2]
[396367612,1764945035576,-501.01627626,0.00014247,2]
[396367613,1764945035586,-1000.0,0.00014247,2]
[396367614,1764945035595,-1000.0,0.00014247,2]
[396367615,1764945035606,-1000.0,0.00014247,2]
[396367616,1764945035616,-911.00509975,0.00014247,2]
[396367617,1764945035625,-1000.0,0.00014247,2]
[396367618,1764945035635,-1000.0,0.00014247,2]
[396367619,1764945035646,-618.04042325,0.00014247,2]
[396367620,1764945035656,-1000.0,0.00014247,2]
[396367621,1764945035666,-1000.0,0.00014247,2]
[396367622,1764945035675,-1000.0,0.00014247,2]
[396367623,1764945035686,-1000.0,0.00014247,2]
[396367624,1764945035696,-1000.0,0.00014247,2]
[396367625,1764945035706,-1000.0,0.00014247,2]
[396367626,1764945035720,-1000.0,0.00014247,2]
[396367627,1764945035730,-1000.0,0.00014247,2]
[396367628,1764945035740,-1000.0,0.00014247,2]
[396367629,1764945035751,-503.29539724,0.00014247,2]
[396367630,1764945035762,-1000.0,0.00014247,2]
[396367631,1764945035773,-1000.0,0.00014247,2]
[396367632,1764945035784,-1000.0,0.00014247,2]
[396367633,1764945035795,-1000.0,0.00014247,2]
[396367634,1764945035807,-1000.0,0.00014247,2]
[396367635,1764945035819,-1000.0,0.00014247,2]
[396367636,1764945035830,-1000.0,0.00014247,2]
[396367637,1764945035843,-1000.0,0.00014247,2]